bitfinex/quotes_ETHUSD_20241104
["timestamp","ask_amount","ask_price","bid_price","bid_amount"]
[1730705670660,4.84148,2466.1,2465.5,4.05584]
[1730705670863,4.05524,2466.0,2465.5,4.05584]
[1730705671028,4.944912,2466.0,2465.5,4.05584]
[1730705671226,4.05531,2465.9,2465.5,4.05584]
[1730705671856,4.05508,2466.1,2465.6,4.05573]
[1730705672159,4.05539,2465.9,2465.4,3.83866945]
[1730705672344,4.05506,2466.1,2465.5,4.05583]
[1730705672526,0.810994,2466.1,2465.6,4.05567]
[1730705672856,8.10978,2466.2,2465.7,4.84143]
[1730705672857,4.05488,2466.2,2465.7,4.84143]
[1730705673464,4.05488,2466.2,2465.7,4.84132]
[1730705673828,8.10978,2466.2,2465.7,4.84132]
[1730705674019,4.05488,2466.2,2465.7,4.84132]
[1730705674383,4.05491,2466.2,2465.7,4.84142]
[1730705674569,1.24880694,2466.4,2465.7,4.84142]
[1730705674570,5.30340694,2466.4,2465.7,4.84142]
[1730705674724,4.05494,2466.2,2465.7,4.84142]
[1730705674925,4.05494,2466.2,2465.8,0.050066]
[1730705675223,4.05494,2466.2,2465.7,4.84142]
[1730705675448,4.05494,2466.2,2465.9,0.04992949]
[1730705675651,4.05506,2466.1,2465.8,0.050066]
[1730705675833,8.11015,2466.1,2466.0,0.04979299]
[1730705676058,4.05506,2466.1,2465.9,0.04992949]
[1730705676229,4.05506,2466.1,2466.0,0.04979299]
[1730705676558,4.05506,2466.1,2465.7,0.7858]
[1730705676865,4.05506,2466.1,2465.8,0.050066]
[1730705677241,4.05506,2466.1,2465.5,4.05591]
[1730705677425,4.05525,2466.0,2465.9,0.04992949]
[1730705677630,4.05525,2466.0,2465.6,4.0558]
[1730705677964,4.055,2466.1,2465.6,4.0558]
[1730705678164,4.055,2466.1,2465.7,0.05020252]
[1730705678860,4.055,2466.1,2465.7,4.10581252]
[1730705679667,4.055,2466.1,2465.7,0.05020252]
[1730705679848,4.05541,2465.9,2465.7,0.05020252]
[1730705680047,4.05525,2466.0,2465.7,0.05020252]
[1730705680248,8.11054,2466.0,2465.5,4.05588]
[1730705680460,4.05525,2466.0,2465.8,0.050066]
[1730705680667,4.05523,2466.0,2465.5,4.05588]
[1730705680863,4.05523,2466.0,2465.9,0.04991055]
[1730705681364,4.05523,2466.0,2465.5,4.05588]
[1730705681674,4.05523,2466.0,2465.6,0.05032012]
[1730705682032,4.05532,2465.9,2465.6,0.05032012]
[1730705683132,4.05517,2466.0,2465.6,0.05032012]
[1730705683369,4.05517,2466.0,2465.6,4.10612012]
[1730705684337,4.0554,2465.9,2465.6,0.05032012]
[1730705684675,4.0554,2465.9,2465.4,12.73661945]
[1730705684839,4.0554,2465.9,2465.7,0.05018359]
[1730705685028,4.05467,2466.3,2465.5,4.05595]
[1730705685233,4.05517,2466.0,2465.5,4.10640667]
[1730705685750,4.05517,2466.0,2465.6,4.05579]
[1730705686076,4.58526769,2466.2,2465.7,0.05018359]
[1730705686077,4.05508,2466.1,2465.7,0.05018359]
[1730705686367,4.05508,2466.1,2465.7,4.10582359]
[1730705686876,4.83053,2466.0,2465.7,0.05018359]
[1730705687238,4.83053,2466.0,2465.6,4.05577]
[1730705687437,0.7753,2466.0,2465.8,0.05004707]
[1730705687648,4.0552,2466.0,2465.7,0.05018359]
[1730705687871,4.0552,2466.0,2465.9,0.04991055]
[1730705688075,4.0552,2466.0,2465.8,0.05004707]
[1730705688367,4.0552,2466.0,2465.9,0.04991055]
[1730705688567,4.0552,2466.0,2465.6,4.05579]
[1730705688758,4.0552,2466.0,2465.9,0.04991055]
[1730705688955,4.0552,2466.0,2465.6,4.05579]
[1730705689172,4.0552,2466.0,2465.9,0.04991055]
[1730705689409,4.0552,2466.0,2465.6,4.05579]
[1730705689602,4.05501,2466.1,2465.9,0.04931941]
[1730705689899,4.05501,2466.1,2465.7,4.05563]
[1730705690088,4.05501,2466.1,2466.0,0.04918291]
[1730705690693,4.05501,2466.1,2465.8,0.8248]
[1730705690895,4.05501,2466.1,2466.0,0.04918291]
[1730705691061,4.05501,2466.1,2465.9,0.04931941]
[1730705691258,4.05501,2466.1,2466.0,0.04918291]
[1730705691561,4.05501,2466.1,2465.8,0.8248]
[1730705691757,4.05501,2466.1,2465.9,0.04931941]
[1730705692201,4.05515,2466.0,2465.9,0.04931941]
[1730705692499,4.05515,2466.0,2465.6,4.88059]
[1730705692667,4.05515,2466.0,2465.9,0.04931941]
[1730705692870,4.05515,2466.0,2465.6,4.88059]
[1730705693360,4.055,2466.1,2465.7,0.04959244]
[1730705693564,4.055,2466.1,2465.7,4.10513244]
[1730705693764,0.7753,2466.0,2465.7,0.04959244]
[1730705693998,4.05544,2465.9,2465.5,0.8248]
[1730705694181,4.05548,2465.8,2465.6,0.04972897]
[1730705694674,4.05544,2465.9,2465.6,0.04972897]
[1730705695067,4.05548,2465.8,2465.6,0.04972897]
[1730705695491,4.05538,2465.9,2465.6,0.04972897]
[1730705696703,4.05513,2466.1,2465.6,4.10550897]
[1730705697072,4.05513,2466.1,2465.7,4.05562]
[1730705697294,8.11018,2466.1,2465.7,4.05562]
[1730705697498,8.11018,2466.1,2465.8,0.04945812]
[1730705697671,4.05515,2466.0,2465.8,0.04945812]
[1730705697868,0.7753,2466.2,2465.5,0.8248]
[1730705698115,4.05517,2466.0,2465.9,0.04932161]
[1730705698413,4.05517,2466.0,2465.6,4.05574]
[1730705698582,4.05517,2466.0,2465.9,0.04932161]
[1730705698913,4.05517,2466.0,2465.5,4.88062]
[1730705699083,4.05517,2466.0,2465.9,0.04932161]
[1730705699403,4.05532,2465.9,2465.5,4.88062]
[1730705699614,4.05521,2466.0,2465.6,4.05578]
[1730705699774,4.05538,2465.9,2465.5,4.88075]
[1730705700306,4.05548,2465.8,2465.5,0.8248]
[1730705700515,4.05548,2465.8,2465.2,4.53772188]
[1730705700516,4.05577,2465.7,2465.3,4.88107]
[1730705700742,4.05548,2465.8,2465.3,4.88107]
[1730705700743,4.8308,2465.8,2465.4,4.0561]
[1730705701045,4.0554,2465.9,2465.5,4.05596]
[1730705701731,4.83055,2466.0,2465.6,4.05574]
[1730705701917,4.05539,2465.9,2465.4,4.6061]
[1730705702105,5.76147807,2466.0,2465.3,0.8248]
[1730705702106,4.05588,2465.6,2465.3,0.8248]
[1730705703512,0.7753,2465.5,2465.2,0.0617408]
[1730705703731,4.0563,2465.3,2465.2,0.0617408]
[1730705705045,4.0563,2465.3,2465.2,0.11203641]
[1730705705228,5.720387,2465.3,2465.2,0.11203641]
[1730705705415,5.720387,2465.3,2465.2,0.0617408]
[1730705705806,8.720387,2465.3,2465.2,0.0617408]
[1730705710836,8.720387,2465.3,2465.2,0.1121237]
[1730705711138,0.01,2465.7,2465.2,0.0617408]
[1730705711139,4.88149,2465.5,2465.2,0.0617408]
[1730705711337,4.05599,2465.5,2465.2,0.0617408]
[1730705711535,4.05599,2465.5,2465.3,0.05025361]
[1730705711735,4.05599,2465.5,2465.2,0.0617408]
[1730705712062,4.05598,2465.5,2465.3,0.05025361]
[1730705712438,4.05598,2465.5,2465.2,0.0617408]
[1730705712738,4.05598,2465.5,2465.3,0.05025361]
[1730705713068,4.05598,2465.5,2465.2,0.0617408]
[1730705713376,4.05598,2465.5,2465.3,0.05025361]
[1730705713673,4.05598,2465.5,2465.2,0.0617408]
[1730705713849,4.05598,2465.5,2465.4,0.05011704]
[1730705714050,4.05598,2465.5,2465.2,0.0617408]
[1730705714257,4.05589,2465.6,2465.2,0.0617408]
[1730705714434,4.05589,2465.6,2465.3,0.05025361]
[1730705714641,4.05589,2465.6,2465.2,4.1181908]
[1730705714972,4.05573,2465.7,2465.3,0.05025361]
[1730705714973,8.11143,2465.7,2465.3,0.05025361]
[1730705715139,4.05582,2465.6,2465.2,7.95686025]
[1730705715649,4.05559,2465.8,2465.3,4.10645361]
[1730705715852,4.05559,2465.8,2465.4,0.8148]
[1730705716245,4.05559,2465.8,2465.5,0.04992009]
[1730705717956,4.05575,2465.7,2465.5,0.04992009]
[1730705718484,4.05549,2465.8,2465.5,0.04992009]
[1730705719357,4.05565,2465.7,2465.5,0.04992009]
[1730705719759,4.0555,2465.8,2465.5,0.04992009]
[1730705726001,4.05533,2465.9,2465.5,0.04992009]
[1730705726210,8.11077,2465.9,2465.5,0.04992009]
[1730705726716,4.05533,2465.9,2465.5,0.04992009]
[1730705727038,8.11074,2465.9,2465.5,0.04992009]
[1730705727403,4.67700151,2465.9,2465.5,0.04992009]
[1730705727604,4.05552,2465.8,2465.5,0.04992009]
[1730705728868,0.8255,2466.1,2465.5,3.88858954]
[1730705729071,4.05505,2466.1,2465.6,4.05564]
[1730705729400,4.05505,2466.1,2465.7,4.82295]
[1730705729713,4.05505,2466.1,2465.7,6.0996543]
[1730705729878,4.05411,2466.7,2465.8,4.10493975]
[1730705730085,4.05466,2466.3,2465.9,4.05524]
[1730705730392,4.05466,2466.3,2466.0,0.04919674]
[1730705730716,4.05466,2466.3,2465.9,4.0553]
[1730705730943,4.05466,2466.3,2466.1,0.04906025]
[1730705731108,4.82503,2466.6,2466.2,4.05476]
[1730705731306,4.05445,2466.5,2466.2,0.04892377]
[1730705731714,4.05419,2466.6,2466.2,4.10365377]
[1730705731913,4.0541,2466.7,2466.2,4.10365377]
[1730705732113,4.82478,2466.8,2466.2,4.10365377]
[1730705732114,4.05438,2466.5,2466.2,0.04892377]
[1730705732351,4.054,2466.7,2466.2,0.04892377]
[1730705732650,4.054,2466.7,2466.2,4.10373377]
[1730705732849,4.054,2466.7,2466.2,5.38020509]
[1730705733148,4.054,2466.7,2466.2,5.38011509]
[1730705733353,4.054,2466.7,2466.3,4.05455]
[1730705733731,4.05381,2466.9,2466.5,0.7674]
[1730705733732,8.10759,2466.9,2466.5,0.7674]
[1730705734056,4.05392,2466.8,2466.6,0.04836052]
[1730705734920,4.05371,2466.9,2466.6,0.04836052]
[1730705735118,4.82443,2467.0,2466.6,0.04836052]
[1730705735119,4.0539,2466.8,2466.6,0.04836052]
[1730705735313,4.05367,2466.9,2466.6,0.04836052]
[1730705735525,8.10746,2466.9,2466.6,0.04836052]
[1730705735729,8.10748,2466.9,2466.6,0.04836052]
[1730705736175,4.05367,2466.9,2466.6,0.04836052]
[1730705736326,8.10749,2466.9,2466.6,0.04836052]
[1730705736840,4.05367,2466.9,2466.6,0.04836052]
[1730705737459,8.10748,2466.9,2466.6,0.04836052]
[1730705737753,4.05367,2466.9,2466.6,0.04836052]
[1730705737918,8.10749,2466.9,2466.6,0.04836052]
[1730705738114,4.05367,2466.9,2466.6,0.04836052]
[1730705738332,8.10747,2466.9,2466.6,0.04836052]
[1730705738832,4.05367,2466.9,2466.6,0.04836052]
[1730705739258,4.05347,2467.1,2466.6,0.04836052]
[1730705739587,4.05364,2467.0,2466.6,0.04836052]
[1730705739728,4.05368,2466.9,2466.6,0.04836052]
[1730705740645,4.05364,2467.0,2466.6,0.04836052]
[1730705740847,4.05371,2466.9,2466.6,0.04836052]
[1730705741189,4.05357,2467.0,2466.6,3.88702997]
[1730705741351,4.05374,2466.9,2466.6,3.88702997]
[1730705741545,4.05357,2467.0,2466.6,3.88702997]
[1730705741741,4.05373,2466.9,2466.6,3.88702997]
[1730705742097,4.05373,2466.9,2466.6,0.04836052]
[1730705743263,4.05357,2467.0,2466.6,0.04836052]
[1730705743780,4.05357,2467.0,2466.6,4.10240052]
[1730705743985,4.05357,2467.0,2466.6,4.10252052]
[1730705744583,5.50391036,2467.7,2467.1,4.05332]
[1730705744783,8.92149,2467.7,2467.4,0.825]
[1730705744994,4.869,2467.7,2467.4,0.825]
[1730705745196,4.869,2467.7,2467.5,0.04700439]
[1730705745686,4.05252,2467.6,2467.5,0.04700439]
[1730705745930,8.92146,2467.7,2467.5,0.04700439]
[1730705746134,8.92145,2467.7,2467.5,0.04700439]
[1730705746428,4.869,2467.7,2467.5,0.04700439]
[1730705746633,8.92146,2467.7,2467.5,0.04700439]
[1730705746803,4.0524,2467.7,2467.5,0.04700439]
[1730705746993,0.8166,2468.1,2467.5,0.04700439]
[1730705746994,4.05233,2467.8,2467.5,0.04700439]
[1730705747193,4.05232,2467.8,2467.5,0.04700439]
[1730705747425,4.05241,2467.7,2467.5,0.04700439]
[1730705747600,4.05216,2467.9,2467.5,0.04700439]
[1730705747807,4.05225,2467.8,2467.5,0.04700439]
[1730705749134,8.10456,2467.8,2467.5,0.04700439]
[1730705749295,4.05225,2467.8,2467.5,0.04700439]
[1730705749934,4.05244,2467.7,2467.5,0.04700439]
[1730705752745,5.679498,2467.7,2467.5,0.04700439]
[1730705753042,5.679498,2467.7,2467.3,4.05298]
[1730705753247,5.679498,2467.7,2467.6,0.04361588]
[1730705753550,5.679498,2467.7,2467.3,4.05298]
[1730705753732,4.05244,2467.7,2467.6,0.04361658]
[1730705753906,4.05244,2467.7,2467.3,4.05298]
[1730705754112,4.05244,2467.7,2467.6,0.04361658]
[1730705754421,4.05244,2467.7,2467.3,4.05298]
[1730705754629,8.10491,2467.7,2467.3,4.05298]
[1730705754846,4.05244,2467.7,2467.3,4.05298]
[1730705755056,4.05244,2467.7,2467.4,0.04388924]
[1730705758766,4.05222,2467.8,2467.4,0.04388924]
[1730705758767,8.10452,2467.8,2467.4,0.04388924]
[1730705759261,8.10452,2467.8,2467.4,4.09669924]
[1730705759562,8.1045,2467.8,2467.4,4.09669924]
[1730705760244,8.1045,2467.8,2467.4,0.04388924]
[1730705760245,4.05236,2467.7,2467.4,0.04388924]
[1730705760661,7.86928,2467.5,2467.4,0.04388924]
[1730705760820,3.8166,2467.5,2466.7,0.825]
[1730705761024,4.05366,2467.0,2466.7,0.825]
[1730705761351,4.05341,2467.1,2466.7,0.825]
[1730705761656,0.8166,2467.4,2466.8,7.89238945]
[1730705761820,0.786955,2467.4,2466.9,4.87859]
[1730705762023,4.05303,2467.3,2466.9,0.825]
[1730705762346,4.05303,2467.3,2466.9,4.8786]
[1730705763755,4.05324,2467.2,2466.9,0.825]
[1730705765167,4.05324,2467.2,2467.0,0.04298834]
[1730705767771,4.05307,2467.3,2467.0,0.04298834]
[1730705768073,4.05329,2467.2,2467.0,0.04298834]
[1730705770471,4.05303,2467.3,2467.0,0.04298834]
[1730705771174,4.05318,2467.2,2467.0,0.04298834]
[1730705772833,4.05287,2467.4,2467.0,0.04298834]
[1730705773029,4.05303,2467.3,2467.0,0.04298834]
[1730705773534,4.05268,2467.5,2467.0,0.91901912]
[1730705773739,4.05258,2467.6,2467.1,0.7676]
[1730705774033,4.05258,2467.6,2467.1,4.82087]
[1730705774034,4.05268,2467.5,2467.1,4.82087]
[1730705774336,4.05268,2467.5,2467.2,0.04272856]
[1730705776239,4.05248,2467.7,2467.2,4.09584856]
[1730705776440,4.05263,2467.6,2467.2,4.09584856]
[1730705777976,4.05239,2467.7,2467.2,4.09582856]
[1730705778163,4.05239,2467.7,2467.3,4.05301]
[1730705778373,0.8146,2467.8,2467.2,0.04272856]
[1730705778374,4.05268,2467.6,2467.2,0.04272856]
[1730705778679,4.05273,2467.5,2467.3,0.04561288]
[1730705779175,4.05273,2467.5,2467.4,0.04546679]
[1730705779790,4.05273,2467.5,2467.1,5.80019291]
[1730705780276,4.05273,2467.5,2467.2,0.04575975]
[1730705780984,4.05254,2467.6,2467.2,4.09890975]
[1730705781140,4.05254,2467.6,2467.2,5.08882002]
[1730705781337,4.05268,2467.5,2467.2,1.03567002]
[1730705781640,4.05268,2467.5,2467.2,0.04575975]
[1730705781861,4.05254,2467.6,2467.2,4.09891975]
[1730705782483,4.05242,2467.7,2467.3,4.05294]
[1730705782650,1.19626,2468.0,2467.4,0.04547066]
[1730705782973,4.05245,2467.7,2467.4,0.04547066]
[1730705785783,4.05253,2467.6,2467.4,0.04547066]
[1730705786001,4.05236,2467.7,2467.4,0.04547066]
[1730705788483,0.419626,2467.9,2467.4,0.04547066]
[1730705788762,4.05219,2467.8,2467.4,0.04547066]
[1730705789381,8.10453,2467.8,2467.4,0.04547066]
[1730705789584,4.05239,2467.7,2467.4,0.04547066]
[1730705790057,3.0,2468.1,2467.4,0.04547066]
[1730705790058,0.7986,2468.4,2467.8,4.05219]
[1730705790259,4.05138,2468.3,2467.9,5.75457798]
[1730705790462,4.84996,2468.4,2468.0,4.05185]
[1730705790782,8.10302,2468.3,2468.1,0.04440594]
[1730705790945,8.993182,2468.3,2468.1,0.04440594]
[1730705791146,4.941662,2468.3,2467.9,5.70993002]
[1730705791342,4.0515,2468.3,2468.2,0.04130929]
[1730705791588,4.0515,2468.3,2467.9,5.70993002]
[1730705791788,4.0515,2468.3,2468.2,0.04425995]
[1730705791961,4.0515,2468.3,2467.9,5.70993002]
[1730705792160,4.0515,2468.3,2468.2,0.04425995]
[1730705792781,4.0515,2468.3,2467.9,5.70993002]
[1730705792992,4.0515,2468.3,2468.2,0.04425995]
[1730705793145,4.0515,2468.3,2467.9,5.70993002]
[1730705793346,4.0515,2468.3,2468.0,0.04455194]
[1730705794949,4.84981,2468.4,2468.0,0.04455194]
[1730705794950,0.7986,2468.6,2468.1,4.85212]
[1730705795151,0.6346989,2468.7,2468.4,4.05114]
[1730705795350,4.84923,2468.8,2468.5,0.04382206]
[1730705795588,4.84923,2468.8,2468.3,4.05134]
[1730705795589,4.05072,2468.7,2468.3,4.05134]
[1730705796097,4.05072,2468.7,2468.4,0.04735016]
[1730705796250,4.940708,2468.7,2468.4,0.04735016]
[1730705796682,4.05104,2468.5,2468.1,0.8005]
[1730705796998,4.05123,2468.4,2468.2,0.04425995]
[1730705798465,4.05106,2468.5,2468.2,0.04425995]
[1730705799685,4.0509,2468.6,2468.2,0.04425995]
[1730705799901,0.889988,2468.7,2468.2,0.04425995]
[1730705800085,4.84928,2468.8,2468.2,0.04425995]
[1730705800290,4.05071,2468.7,2468.2,4.09576995]
[1730705800904,0.7986,2468.8,2468.2,0.04425995]
[1730705801102,4.05105,2468.5,2468.2,0.04425995]
[1730705801521,4.05088,2468.6,2468.2,4.09575995]
[1730705804589,4.05088,2468.6,2468.2,0.04425995]
[1730705804590,4.0511,2468.5,2468.2,0.04425995]
[1730705808228,4.05137,2468.3,2468.2,0.04425995]
[1730705808547,4.05137,2468.3,2467.9,0.7552]
[1730705808854,4.05137,2468.3,2467.9,4.80719]
[1730705809152,4.05136,2468.4,2468.0,0.04785101]
[1730705809153,4.05155,2468.2,2468.0,0.04785101]
[1730705809366,4.05242,2467.7,2467.5,0.7552]
[1730705809866,4.05221,2467.8,2467.5,0.7552]
[1730705810359,4.05235,2467.7,2467.6,0.04501721]
[1730705810913,4.05275,2467.5,2467.3,0.7552]
[1730705811127,4.05309,2467.3,2467.0,0.7552]
[1730705811318,4.05309,2467.3,2466.8,4.809]
[1730705811964,8.10623,2467.3,2466.8,4.809]
[1730705812118,8.10621,2467.3,2466.8,4.80896]
[1730705812321,0.810621,2467.3,2466.8,0.7552]
[1730705812541,4.05374,2466.9,2466.5,4.80951]
[1730705814973,8.10757,2466.9,2466.5,0.7552]
[1730705815281,4.05353,2467.0,2466.5,4.80949]
[1730705815582,4.05326,2467.2,2466.6,4.13518975]
[1730705815734,4.05326,2467.2,2466.8,4.80899]
[1730705815934,8.10656,2467.2,2466.8,0.7552]
[1730705816158,4.05335,2467.1,2466.8,0.7552]
[1730705816696,4.05319,2467.2,2466.8,0.7552]
[1730705817276,4.05319,2467.2,2466.8,4.80901]
[1730705818277,8.10644,2467.2,2466.8,4.80901]
[1730705818436,4.05319,2467.2,2466.8,4.80901]
[1730705819500,8.10651,2467.2,2466.8,0.7552]
[1730705819643,4.05319,2467.2,2466.8,0.7552]
[1730705820684,4.05319,2467.2,2466.8,4.80903]
[1730705821973,4.05301,2467.3,2466.9,4.05357]
[1730705823009,4.05273,2467.5,2466.9,4.05357]
[1730705823010,4.05287,2467.4,2467.0,4.05348]
[1730705823557,4.05287,2467.4,2466.5,4.47436901]
[1730705823558,4.05358,2467.0,2466.6,0.7552]
[1730705823809,4.05432,2466.5,2466.1,0.7552]
[1730705823990,0.482218,2466.9,2466.1,0.7552]
[1730705823991,4.05451,2466.4,2466.1,0.7552]
[1730705824192,4.05467,2466.3,2466.1,0.7552]
[1730705824374,4.05406,2466.7,2465.6,4.05578]
[1730705824375,4.05517,2466.0,2465.6,4.05578]
[1730705824577,4.05541,2465.9,2465.4,0.7552]
[1730705824801,4.05541,2465.9,2465.4,4.81126]
[1730705825025,4.05597,2465.5,2465.2,0.0617408]
[1730705825580,4.05582,2465.6,2465.2,0.0617408]
[1730705828289,4.05565,2465.7,2465.2,4.1181308]
[1730705828660,4.61581091,2465.9,2465.2,0.0617408]
[1730705828823,7.05498,2466.1,2465.2,0.0617408]
[1730705828824,4.824,2465.3,2465.2,0.0617408]
[1730705829178,11.67121091,2465.3,2465.2,0.0617408]
[1730705830179,4.05778,2464.4,2464.1,0.41988067]
[1730705830379,4.0581,2464.3,2464.1,0.41988067]
[1730705830619,4.0581,2464.3,2463.9,0.0617408]
[1730705830620,4.05811,2464.2,2463.9,0.0617408]
[1730705830779,4.05814,2464.2,2463.9,0.0617408]
[1730705831179,2.95879298,2464.2,2463.9,0.0617408]
[1730705831380,8.67227091,2464.7,2463.9,0.0617408]
[1730705831381,4.05772,2464.5,2463.9,0.0617408]
[1730705831618,4.05772,2464.5,2463.9,0.96223288]
[1730705831619,4.05778,2464.4,2463.9,0.96223288]
[1730705831915,4.82509,2464.7,2463.9,5.10199129]
[1730705832218,4.05747,2464.6,2464.0,4.05844]
[1730705832433,4.05763,2464.5,2463.9,5.02082288]
[1730705833016,4.05763,2464.5,2463.9,9.07932288]
[1730705833315,4.05745,2464.6,2464.0,4.96629229]
[1730705833729,4.05739,2464.7,2464.1,4.05818]
[1730705834107,4.05737,2464.7,2464.2,4.05808]
[1730705834293,8.1148,2464.7,2464.1,4.05827]
[1730705834626,8.1148,2464.7,2464.0,4.96622229]
[1730705834627,4.05746,2464.6,2464.0,4.96622229]
[1730705834838,4.05746,2464.6,2464.0,4.05829]
[1730705835517,4.05737,2464.7,2464.1,4.05818]
[1730705835830,4.05737,2464.7,2464.2,4.05796]
[1730705835831,8.11479,2464.7,2464.2,4.05796]
[1730705835994,4.05747,2464.6,2464.2,4.05796]
[1730705836748,4.05737,2464.7,2464.2,4.05796]
[1730705837217,4.05737,2464.7,2464.2,8.927618]
[1730705837413,4.05737,2464.7,2464.2,4.869588]
[1730705838456,4.05737,2464.7,2464.3,4.05793]
[1730705838611,4.05705,2464.9,2464.2,5.695188]
[1730705838816,4.05705,2464.9,2464.3,4.05794]
[1730705838817,8.11416,2464.9,2464.3,4.05794]
[1730705839115,4.05705,2464.9,2464.2,5.695188]
[1730705839318,8.11412,2464.9,2464.3,4.05781]
[1730705839551,4.05705,2464.9,2464.4,4.05774]
[1730705839760,4.05712,2464.8,2464.4,4.05774]
[1730705840006,4.05712,2464.8,2464.3,4.05793]
[1730705840260,4.05712,2464.8,2464.5,0.04683026]
[1730705840554,4.05712,2464.8,2464.6,0.04668384]
[1730705840759,4.05729,2464.7,2464.2,5.695318]
[1730705841055,4.05729,2464.7,2464.3,0.04712313]
[1730705841351,4.05729,2464.7,2464.2,5.695318]
[1730705841531,4.05729,2464.7,2464.3,0.04712313]
[1730705841731,4.05729,2464.7,2464.2,5.695318]
[1730705841940,4.05729,2464.7,2464.3,0.04712313]
[1730705842122,8.11469,2464.7,2464.2,5.695318]
[1730705842339,4.05729,2464.7,2464.3,0.04712313]
[1730705842519,4.05729,2464.7,2464.3,4.0579]
[1730705842717,0.7677,2465.0,2464.4,0.04697669]
[1730705842951,4.05653,2465.2,2464.6,4.88297]
[1730705843151,4.05719,2464.8,2464.7,0.04653287]
[1730705843353,4.05684,2465.0,2464.7,0.04653287]
[1730705843521,8.11373,2465.0,2464.5,4.05753]
[1730705843714,8.11373,2465.0,2464.6,0.04667776]
[1730705844546,4.05699,2464.9,2464.6,0.04667776]
[1730705844753,4.05719,2464.8,2464.3,4.88342]
[1730705844919,4.05719,2464.8,2464.4,4.10160147]
[1730705845555,4.05719,2464.8,2464.4,0.04382147]
[1730705845732,4.05697,2464.9,2464.4,4.10158147]
[1730705846455,4.05697,2464.9,2464.4,0.04382147]
[1730705846659,4.05697,2464.9,2464.5,4.05761]
[1730705846958,4.05697,2464.9,2464.6,0.04665797]
[1730705847170,4.05682,2465.0,2464.6,0.04665797]
[1730705847664,4.05682,2465.0,2464.6,4.10408797]
[1730705848729,4.05677,2465.1,2464.7,4.05725]
[1730705848929,4.05677,2465.1,2464.8,0.86248754]
[1730705849931,4.05676,2465.1,2464.8,0.04635374]
[1730705850238,4.05686,2465.0,2464.6,4.05743]
[1730705850570,4.05676,2465.1,2464.7,4.05728]
[1730705850737,4.05676,2465.1,2464.8,0.04635374]
[1730705851070,4.05676,2465.1,2464.7,4.05728]
[1730705851228,4.05676,2465.1,2464.9,0.04620736]
[1730705851425,4.05676,2465.1,2464.8,0.04635374]
[1730705851634,4.05676,2465.1,2465.0,0.04606099]
[1730705851858,4.05676,2465.1,2464.9,0.04620736]
[1730705852038,4.05652,2465.2,2465.0,0.04606099]
[1730705852368,4.05601,2465.5,2464.9,8.11377]
[1730705852551,4.05601,2465.5,2465.0,4.99224354]
[1730705852726,4.0558,2465.6,2465.0,0.93554354]
[1730705852936,4.05637,2465.3,2465.0,0.04604654]
[1730705853961,4.05637,2465.3,2464.8,4.8383]
[1730705854176,4.05637,2465.3,2464.9,0.04619062]
[1730705854668,4.05637,2465.3,2464.9,4.10312062]
[1730705856430,4.05607,2465.5,2465.0,4.05676]
[1730705856771,4.05621,2465.4,2465.1,0.04588573]
[1730705867875,4.05643,2465.3,2465.1,0.04588573]
[1730705868275,4.05643,2465.3,2464.9,4.05686]
[1730705868479,4.05643,2465.3,2465.2,0.04569527]
[1730705868678,4.05643,2465.3,2464.9,4.05686]
[1730705868913,4.05643,2465.3,2465.2,0.04569527]
[1730705869114,4.05643,2465.3,2464.9,4.6218123]
[1730705869263,4.05643,2465.3,2465.2,0.04569527]
[1730705869468,4.05643,2465.3,2464.9,4.6218123]
[1730705869469,4.05643,2465.3,2464.9,8.6786523]
[1730705869682,4.05643,2465.3,2465.2,0.04569527]
[1730705869913,4.05643,2465.3,2464.9,8.6786723]
[1730705870074,4.05643,2465.3,2465.2,0.04569527]
[1730705870414,4.05643,2465.3,2465.2,0.04569374]
[1730705870570,4.05621,2465.4,2465.2,0.04569374]
[1730705870771,4.05621,2465.4,2465.0,4.05676]
[1730705870994,4.05621,2465.4,2465.1,0.04584008]
[1730705872596,8.11244,2465.4,2465.1,0.04584008]
[1730705872799,4.05621,2465.4,2465.1,0.04584008]
[1730705875593,8.11244,2465.4,2465.1,0.04584008]
[1730705876715,4.05621,2465.4,2465.1,0.04584008]
[1730705880596,4.05596,2465.6,2465.1,4.97489932]
[1730705881014,4.056,2465.5,2465.1,4.97489932]
[1730705881532,4.056,2465.5,2465.1,4.97481932]
[1730705881702,4.05614,2465.4,2465.1,0.04584008]
[1730705882104,4.05632,2465.3,2465.1,0.04584008]
[1730705882438,4.05632,2465.3,2465.2,0.04568463]
[1730705882899,4.05663,2465.1,2464.6,1.18880817]
[1730705883105,0.7991,2465.2,2464.6,5.24619817]
[1730705883333,4.05689,2465.0,2464.6,0.769]
[1730705883631,0.37991,2465.1,2464.1,0.84503503]
[1730705883827,4.05819,2464.2,2464.0,0.84503503]
[1730705884040,6.84721091,2464.5,2463.9,0.0617408]
[1730705884041,4.05796,2464.3,2463.9,0.0617408]
[1730705884189,4.05834,2464.1,2463.9,0.0617408]
[1730705884527,4.05844,2464.0,2463.9,0.0617408]
[1730705885164,4.05844,2464.0,2463.9,0.10759293]
[1730705885286,4.05844,2464.0,2463.9,0.0617408]
[1730705886232,4.05844,2464.0,2463.9,0.10759293]
[1730705886729,4.05844,2464.0,2463.9,0.0617408]
[1730705887086,4.05844,2464.0,2463.9,0.10759293]
[1730705888242,4.05844,2464.0,2463.9,0.0617408]
[1730705888733,4.05829,2464.1,2463.9,0.10759293]
[1730705889553,4.05844,2464.0,2463.9,0.10759293]
[1730705891362,4.05844,2464.0,2463.9,0.0617408]
[1730705893551,4.05844,2464.0,2463.9,0.10759293]
[1730705895362,4.05844,2464.0,2463.9,0.0617408]
[1730705895563,4.05844,2464.0,2463.9,0.10780108]
[1730705896483,4.950022,2464.0,2463.9,0.10780108]
[1730705896716,4.05844,2464.0,2463.9,0.10780108]
[1730705899689,4.05828,2464.1,2463.9,0.10780108]